fUST/lending_fUST_20250615
["ID","MTS","AMOUNT","RATE_DAILY","PERIOD"]
[365847230,1749955834061,-508.87879915,0.00021917,4]
[365847231,1749955834071,-460.0,0.00021917,4]
[365847232,1749955834080,-414.20383321,0.00021917,4]
[365847233,1749955834090,-498.52867638,0.00021917,4]
[365847234,1749955834100,-460.0,0.00021917,4]
[365847235,1749955834110,-556.88,0.00021917,4]
[365847236,1749955834119,-460.0,0.00021917,4]
[365847237,1749955834128,-460.0,0.00021917,4]
[365847238,1749955834138,-460.0,0.00021917,4]
[365847239,1749955834154,-434.43435421,0.00021917,4]
[365847240,1749955834164,-460.0,0.00021917,4]
[365847241,1749955834173,-490.44846432,0.00021917,4]
[365847242,1749955834183,-463.09256861,0.00021917,4]
[365847243,1749955834194,-460.0,0.00021917,4]
[365847244,1749955834204,-938.63,0.00021917,4]
[365847245,1749955834214,-460.78943362,0.00021917,4]
[365847246,1749955834224,-459.68602646,0.00021917,4]
[365847247,1749955834234,-460.0,0.00021917,4]
[365847248,1749955834243,-460.0,0.00021917,4]
[365847249,1749955834253,-460.0,0.00021917,4]
[365847250,1749955834262,-461.33236213,0.00021917,4]
[365847251,1749955834272,-460.0,0.00021917,4]
[365847252,1749955834282,-460.0,0.00021917,4]
[365847253,1749955834291,-460.0,0.00021917,4]
[365847254,1749955834302,-460.0,0.00021917,4]
[365847255,1749955834312,-443.40378618,0.00021917,4]
[365847256,1749955834321,-460.0,0.00021917,4]
[365847257,1749955834331,-437.71061627,0.00021917,4]
[365847258,1749955834341,-415.44343456,0.00021917,4]
[365847259,1749955834354,-460.0,0.00021917,4]
[365847260,1749955834364,-460.0,0.00021917,4]
[365847261,1749955834375,-460.0,0.00021917,4]
[365847262,1749955834386,-460.0,0.00021917,4]
[365847263,1749955834397,-460.0,0.00021917,4]
[365847264,1749955834407,-452.48776032,0.00021917,4]
[365847265,1749955834419,-460.0,0.00021917,4]
[365847266,1749955834428,-460.0,0.00021917,4]
[365847267,1749955834438,-520.63360611,0.00021917,4]
[365847268,1749955834448,-354.88525074,0.00021917,4]
[365847269,1749955834457,-438.7030934,0.00021917,4]
[365847270,1749955834467,-460.0,0.00021917,4]
[365847271,1749955834477,-635.65,0.00021917,4]
[365847272,1749955834487,-442.40068567,0.00021917,4]
[365847273,1749955834496,-460.0,0.00021917,4]
[365847274,1749955834506,-350.9111907,0.00021917,4]
[365847275,1749955834515,-500.0,0.00021917,4]
[365847276,1749955834525,-500.0,0.00021917,4]
[365847277,1749955834535,-500.0,0.00021917,4]
[365847278,1749955834545,-460.0,0.00021917,4]
[365847279,1749955834555,-500.0,0.00021917,4]
[365847280,1749955834565,-500.0,0.00021917,4]
[365847281,1749955834575,-464.18035832,0.00021917,4]
[365847282,1749955834584,-500.0,0.00021917,4]
[365847283,1749955834594,-460.0,0.00021917,4]
[365847284,1749955834604,-500.0,0.00021917,4]
[365847285,1749955834614,-441.22975194,0.00021917,4]
[365847286,1749955834624,-500.0,0.00021917,4]
[365847287,1749955834633,-564.00514275,0.00021917,4]
[365847288,1749955834643,-460.0,0.00021917,4]
[365847289,1749955834653,-460.0,0.00021917,4]
[365847290,1749955834662,-460.0,0.00021917,4]
[365847291,1749955834672,-438.75196683,0.00021917,4]
[365847292,1749955834681,-460.0,0.00021917,4]
[365847293,1749955834690,-463.1194358,0.00021917,4]
[365847294,1749955834700,-443.40591295,0.00021917,4]
[365847295,1749955834709,-460.0,0.00021917,4]
[365847296,1749955834719,-443.76641053,0.00021917,4]
[365847297,1749955834729,-460.0,0.00021917,4]
[365847298,1749955834738,-569.50347656,0.00021917,4]
[365847299,1749955834748,-460.0,0.00021917,4]
[365847300,1749955834758,-277.62675076,0.00021917,4]
[365847301,1749955834767,-408.97697169,0.00021917,4]
[365847302,1749955834777,-460.0,0.00021917,4]
[365847303,1749955834787,-446.20317163,0.00021917,4]
[365847304,1749955834797,-458.39075583,0.00021917,4]
[365847305,1749955834807,-460.0,0.00021917,4]
[365847306,1749955834816,-432.66209269,0.00021917,4]
[365847307,1749955834826,-1656.14,0.00021917,4]
[365847308,1749955834836,-447.19437444,0.00021917,4]
[365847309,1749955834845,-460.0,0.00021917,4]
[365847310,1749955834855,-460.0,0.00021917,4]
[365847311,1749955834864,-460.0,0.00021917,4]
[365847312,1749955834874,-443.885315,0.00021917,4]
[365847313,1749955834883,-460.0,0.00021917,4]
[365847314,1749955834892,-440.0,0.00021917,4]
[365847315,1749955834902,-463.47683701,0.00021917,4]
[365847316,1749955834912,-460.0,0.00021917,4]
[365847317,1749955834921,-587.94400994,0.00021917,4]
[365847318,1749955834930,-460.0,0.00021917,4]
[365847319,1749955834940,-460.0,0.00021917,4]
[365847320,1749955834949,-460.0,0.00021917,4]
[365847321,1749955834959,-430.0,0.00021917,4]
[365847322,1749955834968,-460.0,0.00021917,4]
[365847323,1749955834978,-460.0,0.00021917,4]
[365847324,1749955834988,-460.0,0.00021917,4]
[365847325,1749955834998,-436.95924757,0.00021917,4]
[365847326,1749955835007,-2294.97,0.00021917,4]
[365847327,1749955835017,-460.0,0.00021917,4]
[365847328,1749955835027,-227.93637996,0.00021917,4]
[365847329,1749955835036,-467.68,0.00021917,2]
[365847330,1749955835047,-161.90401864,0.00021917,4]
[365847331,1749955835058,-460.0,0.00021917,4]
[365847332,1749955835067,-432.55554105,0.00021917,4]
[365847333,1749955835078,-507.19,0.00021917,4]
[365847334,1749955835088,-560.77,0.00021917,4]
[365847335,1749955835099,-440.0,0.00021917,4]
[365847336,1749955835108,-466.41730335,0.00021917,4]
[365847337,1749955835119,-460.0,0.00021917,4]
[365847338,1749955835131,-452.3345428,0.00021917,4]
[365847339,1749955835143,-460.0,0.00021917,4]
[365847340,1749955835154,-684.99,0.00021917,4]
[365847341,1749955835164,-438.57816002,0.00021917,4]
[365847342,1749955835175,-432.45976772,0.00021917,4]
[365847343,1749955835186,-460.0,0.00021917,4]
[365847344,1749955835196,-460.0,0.00021917,4]
[365847345,1749955835205,-432.10861023,0.00021917,4]
[365847346,1749955835217,-3484.42,0.00021917,4]
[365847347,1749955835229,-452.34029289,0.00021917,4]
[365847348,1749955835238,-504.89016398,0.00021917,4]
[365847349,1749955835247,-460.0,0.00021917,4]
[365847350,1749955835257,-460.0,0.00021917,4]
[365847351,1749955835266,-460.0,0.00021917,4]
[365847352,1749955835277,-460.0,0.00021917,4]
[365847353,1749955835288,-446.54047025,0.00021917,4]
[365847354,1749955835299,-469.38909669,0.00021917,4]
[365847355,1749955835308,-500.0,0.00021917,4]
[365847356,1749955835317,-500.0,0.00021917,4]
[365847357,1749955835327,-500.0,0.00021917,4]
[365847358,1749955835336,-500.0,0.00021917,4]
[365847359,1749955835345,-570.5937577,0.00021917,4]
[365847360,1749955835354,-460.0,0.00021917,4]
[365847361,1749955835365,-460.0,0.00021917,4]
[365847362,1749955835374,-468.24267076,0.00021917,4]
[365847363,1749955835383,-423.61709059,0.00021917,4]
[365847364,1749955835393,-460.0,0.00021917,4]
[365847365,1749955835402,-495.87,0.00021917,4]
[365847366,1749955835411,-460.0,0.00021917,4]
[365847367,1749955835420,-4582.23,0.00021917,4]
[365847368,1749955835429,-460.0,0.00021917,4]
[365847369,1749955835438,-460.0,0.00021917,4]
[365847370,1749955835449,-1027.77,0.00021917,4]
[365847371,1749955835458,-460.0,0.00021917,4]
[365847372,1749955835468,-460.0,0.00021917,4]
[365847373,1749955835477,-409.50224827,0.00021917,4]
[365847374,1749955835486,-460.0,0.00021917,4]
[365847375,1749955835495,-460.0,0.00021917,4]
[365847376,1749955835505,-460.0,0.00021917,4]
[365847377,1749955835514,-502.28198851,0.00021917,4]
[365847378,1749955835523,-460.0,0.00021917,4]
[365847379,1749955835532,-744.31,0.00021917,4]
[365847380,1749955835542,-436.89063732,0.00021917,4]
[365847381,1749955835551,-460.0,0.00021917,4]
[365847382,1749955835560,-588.86,0.00021917,4]
[365847383,1749955835570,-427.52835199,0.00021917,4]
[365847384,1749955835579,-431.47166452,0.00021917,4]
[365847385,1749955835588,-431.24031143,0.00021917,4]
[365847386,1749955835597,-460.0,0.00021917,4]
[365847387,1749955835606,-460.0,0.00021917,4]
[365847388,1749955835615,-460.0,0.00021917,4]
[365847389,1749955835624,-443.88759927,0.00021917,4]
[365847390,1749955835633,-460.0,0.00021917,4]
[365847391,1749955835644,-460.0,0.00021917,4]
[365847392,1749955835654,-442.47828112,0.00021917,4]
[365847393,1749955835665,-453.43734031,0.00021917,4]
[365847394,1749955835675,-3104.87,0.00021917,4]
[365847395,1749955835685,-460.0,0.00021917,4]
[365847396,1749955835694,-692.14,0.00021917,4]
[365847397,1749955835703,-460.0,0.00021917,4]
[365847398,1749955835720,-460.0,0.00021917,4]
[365847399,1749955835739,-401.81781567,0.00021917,4]
[365847400,1749955835760,-451.87544071,0.00021917,4]
[365847401,1749955835783,-460.0,0.00021917,4]
[365847402,1749955835805,-464.76106201,0.00021917,4]
[365847403,1749955835827,-455.17489689,0.00021917,4]
[365847404,1749955835847,-460.0,0.00021917,4]
[365847405,1749955835868,-460.0,0.00021917,4]
[365847406,1749955835885,-460.0,0.00021917,4]
[365847407,1749955835895,-465.93686333,0.00021917,4]
[365847408,1749955835904,-443.59741198,0.00021917,4]
[365847409,1749955835914,-460.0,0.00021917,4]
[365847410,1749955835923,-459.50334177,0.00021917,4]
[365847411,1749955835933,-468.09120899,0.00021917,4]
[365847412,1749955835943,-445.32968744,0.00021917,4]
[365847413,1749955835952,-460.96826726,0.00021917,4]
[365847414,1749955835962,-460.0,0.00021917,4]
[365847415,1749955835971,-433.87976963,0.00021917,4]
[365847416,1749955835981,-460.0,0.00021917,4]
[365847417,1749955835991,-2372.69,0.00021917,4]
[365847418,1749955836001,-460.0,0.00021917,4]
[365847419,1749955836010,-1408.97,0.00021917,4]
[365847420,1749955836021,-460.0,0.00021917,4]
[365847421,1749955836030,-460.0,0.00021917,4]
[365847422,1749955836040,-464.9758227,0.00021917,4]
[365847423,1749955836049,-460.0,0.00021917,4]
[365847424,1749955836059,-460.0,0.00021917,4]
[365847425,1749955836068,-460.0,0.00021917,4]
[365847426,1749955836080,-475.21618154,0.00021917,4]
[365847427,1749955836089,-431.62616798,0.00021917,4]
[365847428,1749955836098,-448.36070407,0.00021917,4]
[365847429,1749955836107,-460.0,0.00021917,4]
[365847430,1749955836116,-465.51470658,0.00021917,4]
[365847431,1749955836126,-460.0,0.00021917,4]
[365847432,1749955836135,-460.0,0.00021917,4]
[365847433,1749955836148,-530.0,0.00021917,4]
[365847434,1749955836157,-448.19903023,0.00021917,4]
[365847435,1749955836168,-460.0,0.00021917,4]
[365847436,1749955836178,-455.00995715,0.00021917,4]
[365847437,1749955836197,-1063.99,0.00021917,4]
[365847438,1749955836214,-503.51009659,0.00021917,4]
[365847439,1749955836236,-460.0,0.00021917,4]
[365847440,1749955836249,-473.74578132,0.00021917,4]
[365847441,1749955836259,-515.42047339,0.00021917,4]
[365847442,1749955836268,-460.0,0.00021917,4]
[365847443,1749955836278,-408.75122481,0.00021917,4]
[365847444,1749955836288,-423.17253369,0.00021917,4]
[365847445,1749955836299,-454.48849408,0.00021917,4]
[365847446,1749955836428,-400.0,0.00021917,4]
[365847447,1749955836437,-460.0,0.00021917,4]
[365847448,1749955836447,-1498.79,0.00021917,4]
[365847449,1749955836456,-684.0,0.00021917,4]
[365847450,1749955836467,-463.7672001,0.00021917,4]
[365847451,1749955836476,-460.0,0.00021917,4]
[365847452,1749955836486,-460.0,0.00021917,4]
[365847453,1749955836495,-465.43615953,0.00021917,4]
[365847454,1749955836507,-392.24845536,0.00021917,4]
[365847455,1749955836515,-406.09415022,0.00021917,4]
[365847456,1749955836525,-460.0,0.00021917,4]
[365847457,1749955836534,-460.0,0.00021917,4]
[365847458,1749955836543,-460.0,0.00021917,2]
[365847459,1749955836552,-436.93742698,0.00021917,4]
[365847460,1749955836561,-460.0,0.00021917,4]
[365847461,1749955836570,-460.0,0.00021917,4]
[365847462,1749955836579,-476.44301515,0.00021917,4]
[365847463,1749955836588,-402.14810802,0.00021917,4]
[365847464,1749955836598,-469.68055905,0.00021917,4]
[365847465,1749955836608,-713.01,0.00021917,4]
[365847466,1749955836617,-662.86,0.00021917,4]
[365847467,1749955836627,-403.94973423,0.00021917,4]
[365847468,1749955836636,-460.0,0.00021917,4]
[365847469,1749955836645,-460.0,0.00021917,4]
[365847470,1749955836654,-471.03177483,0.00021917,4]
[365847471,1749955836663,-460.0,0.00021917,4]
[365847472,1749955836673,-460.0,0.00021917,4]
[365847473,1749955836683,-184.01595344,0.00021917,4]
[365847474,1749955836695,-460.0,0.00021917,4]
[365847475,1749955836705,-522.42639287,0.00021917,4]
[365847476,1749955836715,-592.03,0.00021917,4]
[365847477,1749955836724,-460.0,0.00021917,4]
[365847478,1749955836734,-460.0,0.00021917,4]
[365847479,1749955836743,-440.0,0.00021917,4]
[365847480,1749955836752,-442.78848297,0.00021917,4]
[365847481,1749955836762,-400.56252339,0.00021917,4]
[365847482,1749955836771,-460.0,0.00021917,4]
[365847483,1749955836781,-460.0,0.00021917,4]
[365847484,1749955836791,-472.03905629,0.00021917,4]
[365847485,1749955836800,-460.0,0.00021917,4]
[365847486,1749955836810,-460.0,0.00021917,4]
[365847487,1749955836819,-460.0,0.00021917,4]
[365847488,1749955836828,-460.0,0.00021917,4]
[365847489,1749955836837,-460.0,0.00021917,4]
[365847490,1749955836847,-460.0,0.00021917,4]
[365847491,1749955836856,-453.30192872,0.00021917,4]
[365847492,1749955836865,-460.0,0.00021917,4]
[365847493,1749955836874,-446.70046135,0.00021917,4]
[365847494,1749955836883,-445.79592002,0.00021917,4]
[365847495,1749955836893,-475.3,0.00021917,4]
[365847496,1749955836902,-460.0,0.00021917,4]
[365847497,1749955836912,-460.0,0.00021917,4]
[365847498,1749955836921,-559.22850677,0.00021917,4]
[365847499,1749955836930,-460.0,0.00021917,4]
[365847500,1749955836940,-460.0,0.00021917,4]
[365847501,1749955836949,-460.0,0.00021917,4]
[365847502,1749955836959,-461.45653479,0.00021917,4]
[365847503,1749955836968,-460.0,0.00021917,4]
[365847504,1749955836977,-460.0,0.00021917,4]
[365847505,1749955836987,-460.0,0.00021917,4]
[365847506,1749955836998,-460.0,0.00021917,4]
[365847507,1749955837009,-460.0,0.00021917,4]
[365847508,1749955837018,-304.34219222,0.00021917,4]
[365847509,1749955837027,-460.0,0.00021917,4]
[365847510,1749955837036,-403.75053481,0.00021917,4]
[365847511,1749955837046,-460.0,0.00021917,4]
[365847512,1749955837055,-460.0,0.00021917,4]
[365847513,1749955837064,-460.0,0.00021917,4]
[365847514,1749955837073,-496.96,0.00021917,4]
[365847515,1749955837082,-460.13236905,0.00021917,4]
[365847516,1749955837091,-463.57708016,0.00021917,4]
[365847517,1749955837100,-493.82,0.00021917,4]
[365847518,1749955837109,-460.0,0.00021917,4]
[365847519,1749955837118,-954.25,0.00021917,4]
[365847520,1749955837127,-460.0,0.00021917,4]
[365847521,1749955837136,-402.25710202,0.00021917,4]
[365847522,1749955837145,-690.69,0.00021917,4]
[365847523,1749955837154,-466.94554141,0.00021917,4]
[365847524,1749955837163,-418.00217917,0.00021917,4]
[365847525,1749955837172,-463.060964,0.00021917,4]
[365847526,1749955837181,-462.12512946,0.00021917,4]
[365847527,1749955837190,-460.0,0.00021917,4]
[365847528,1749955837199,-468.61062576,0.00021917,4]
[365847529,1749955837216,-432.77632321,0.00021917,4]
[365847530,1749955837225,-1618.11,0.00021917,4]
[365847531,1749955837234,-459.90303418,0.00021917,4]
[365847532,1749955837243,-460.0,0.00021917,4]
[365847533,1749955837252,-460.0,0.00021917,4]
[365847534,1749955837261,-460.0,0.00021917,4]
[365847535,1749955837270,-465.86405709,0.00021917,4]
[365847536,1749955837280,-460.0,0.00021917,4]
[365847537,1749955837289,-2577.73,0.00021917,4]
[365847538,1749955837298,-451.83420103,0.00021917,4]
[365847539,1749955837307,-436.35539237,0.00021917,4]
[365847540,1749955837316,-402.94318294,0.00021917,4]
[365847541,1749955837325,-400.0,0.00021917,4]
[365847542,1749955837334,-460.94995698,0.00021917,4]
[365847543,1749955837343,-460.0,0.00021917,4]
[365847544,1749955837352,-1513.2,0.00021917,4]
[365847546,1749955837361,-463.13290718,0.00021917,4]
[365847547,1749955837371,-460.0,0.00021917,4]
[365847548,1749955837380,-460.0,0.00021917,4]
[365847549,1749955837390,-460.0,0.00021917,4]
[365847550,1749955837399,-460.0,0.00021917,4]
[365847551,1749955837415,-460.0,0.00021917,4]
[365847552,1749955837431,-386.94283755,0.00021917,4]
[365847553,1749955837442,-511.02,0.00021917,4]
[365847554,1749955837451,-460.0,0.00021917,4]
[365847555,1749955837461,-448.53803263,0.00021917,4]
[365847556,1749955837470,-471.80095257,0.00021917,4]
[365847557,1749955837480,-231.65899485,0.00021917,4]
[365847558,1749955837489,-460.0,0.00021917,4]
[365847559,1749955837498,-438.24349034,0.00021917,4]
[365847560,1749955837507,-440.47076089,0.00021917,4]
[365847561,1749955837516,-581.283531,0.00021917,4]
[365847562,1749955837525,-460.0,0.00021917,4]
[365847563,1749955837534,-445.49132764,0.00021917,4]
[365847564,1749955837543,-460.0,0.00021917,4]
[365847565,1749955837552,-460.0,0.00021917,4]
[365847566,1749955837561,-460.0,0.00021917,4]
[365847567,1749955837570,-402.72083981,0.00021917,4]
[365847568,1749955837579,-460.0,0.00021917,4]
[365847569,1749955837588,-405.51867862,0.00021917,4]
[365847570,1749955837597,-460.0,0.00021917,4]
[365847571,1749955837606,-467.06552536,0.00021917,4]
[365847572,1749955837615,-460.0,0.00021917,4]
[365847573,1749955837624,-415.40631569,0.00021917,4]
[365847574,1749955837633,-460.0,0.00021917,4]
[365847575,1749955837642,-405.39568579,0.00021917,4]
[365847576,1749955837650,-542.29949919,0.00021917,4]
[365847577,1749955837660,-1996.62,0.00021917,4]
[365847578,1749955837669,-480.872299,0.00021917,4]
[365847579,1749955837678,-402.57993206,0.00021917,4]
[365847580,1749955837687,-1050.21,0.00021917,4]
[365847581,1749955837696,-401.91409952,0.00021917,4]
[365847582,1749955837705,-312.1468531,0.00021917,4]
[365847583,1749955837714,-407.04394238,0.00021917,4]
[365847584,1749955837724,-449.45407429,0.00021917,4]
[365847585,1749955837734,-456.97559507,0.00021917,4]
[365847586,1749955837742,-460.0,0.00021917,4]
[365847587,1749955837751,-460.0,0.00021917,4]
[365847588,1749955837761,-460.0,0.00021917,4]
[365847589,1749955837770,-655.88,0.00021917,4]
[365847590,1749955837779,-460.0,0.00021917,4]
[365847591,1749955837789,-460.0,0.00021917,4]
[365847592,1749955837798,-1668.32,0.00021917,4]
[365847593,1749955837806,-460.0,0.00021917,4]
[365847594,1749955837815,-460.0,0.00021917,4]
[365847595,1749955837824,-239.971559,0.00021917,4]
[365847596,1749955837833,-557.09271926,0.00021917,4]
[365847597,1749955837843,-460.0,0.00021917,4]
[365847598,1749955837852,-2104.04,0.00021922,2]
[365847599,1749955837861,-275.0,0.00021952,2]
[365847600,1749955837870,-275.0,0.00021962,2]
[365847601,1749955837879,-690.72806334,0.00022038,6]
[365847602,1749955837889,-275.0,0.00022064,2]
[365847603,1749955837899,-502.39684732,0.00022173,2]
[365847604,1749955837915,-131.70351887,0.00022173,2]
[365847605,1749955837942,-368.29648113,0.00022173,2]
[365847606,1749955837952,-503.39740238,0.00022173,2]
[365847607,1749955837961,-690.72806334,0.00022176,6]
[365847608,1749955837971,-500.0,0.00022191,4]
[365847609,1749955837980,-400.0,0.00022191,4]
[365847610,1749955837989,-401.47228451,0.00022191,4]
[365847611,1749955837999,-390.67990457,0.00022191,4]
[365847612,1749955838011,-23.04906924,0.00022191,4]
[365847613,1749955838021,-460.0,0.00022191,4]
[365847614,1749955838030,-460.0,0.00022191,4]
[365847615,1749955838039,-460.0,0.00022191,4]
[365847616,1749955838048,-460.0,0.00022191,4]
[365847617,1749955838058,-480.17347945,0.00022191,4]
[365847618,1749955838067,-378.16444686,0.00022191,4]
[365847619,1749955838077,-460.0,0.00022191,4]
[365847620,1749955838087,-460.0,0.00022191,4]
[365847621,1749955838096,-406.37513883,0.00022191,4]
[365847622,1749955838108,-18.37098556,0.00022191,4]
[365847623,1749955838117,-460.0,0.00022191,4]
[365847624,1749955838127,-460.0,0.00022191,4]
[365847625,1749955838136,-390.69901431,0.00022191,4]
[365847650,1749955840116,-441.18060608,0.00021917,4]
[365847651,1749955840125,-460.0,0.00021917,4]
[365847652,1749955840135,-421.9266325,0.00022191,4]
[365847653,1749955840146,-504.18640032,0.00022191,4]
[365847654,1749955840154,-460.0,0.00022191,4]
[365847655,1749955840163,-91.59253117,0.00022191,4]
[365847656,1749955840176,-368.40746883,0.00022191,4]
[365847657,1749955840187,-470.74519645,0.00022191,4]
[365847658,1749955840196,-460.0,0.00022191,4]
[365847659,1749955840205,-460.0,0.00022191,4]
[365847660,1749955840214,-460.0,0.00022191,4]
[365847661,1749955840225,-460.0,0.00022191,4]
[365847662,1749955840234,-460.0,0.00022191,4]
[365847663,1749955840243,-447.4702636,0.00022191,4]
[365847664,1749955840252,-562.63,0.00022191,4]
[365847665,1749955840261,-382.53466667,0.00022191,4]
[365847666,1749955840270,-403.80584829,0.00022191,4]
[365847667,1749955840279,-556.88,0.00022191,4]
[365847668,1749955840401,-416.44310828,0.00022191,4]
[365847669,1749955840410,-460.0,0.00022191,4]
[365847670,1749955840420,-460.0,0.00022191,4]
[365847671,1749955840429,-938.63,0.00022191,4]
[365847672,1749955840438,-460.0,0.00022191,4]
[365847673,1749955840448,-460.0,0.00022191,4]
[365847674,1749955840458,-460.0,0.00022191,4]
[365847675,1749955840467,-460.0,0.00022191,4]
[365847676,1749955840476,-460.0,0.00022191,4]
[365847677,1749955840485,-460.0,0.00022191,4]
[365847678,1749955840495,-460.0,0.00022191,4]
[365847679,1749955840504,-441.68068874,0.00022191,4]
[365847680,1749955840514,-400.0,0.00022191,4]
[365847681,1749955840525,-410.88661246,0.00022191,4]
[365847682,1749955840534,-436.37479857,0.00022191,4]
[365847683,1749955840543,-635.65,0.00022191,4]
[365847684,1749955840553,-460.0,0.00022191,4]
[365847685,1749955840562,-460.0,0.00022191,4]
[365847686,1749955840572,-410.9064859,0.00022191,4]
[365847687,1749955840581,-460.0,0.00022191,4]
[365847688,1749955840591,-418.73639525,0.00022191,4]
[365847689,1749955840600,-418.1782681,0.00022191,4]
[365847690,1749955840610,-1656.14,0.00022191,4]
[365847691,1749955840619,-411.21771679,0.00022191,4]
[365847692,1749955840628,-460.0,0.00022191,4]
[365847693,1749955840636,-452.07239791,0.00022191,4]
[365847694,1749955840645,-460.0,0.00022191,4]
[365847695,1749955840655,-460.0,0.00022191,4]
[365847696,1749955840667,-479.32423968,0.00022191,4]
[365847697,1749955840677,-427.84103979,0.00022191,4]
[365847698,1749955840686,-440.25826694,0.00022191,4]
[365847699,1749955840695,-460.0,0.00022191,4]
[365847700,1749955840704,-2294.97,0.00022191,4]
[365847701,1749955840714,-467.68,0.00022191,2]
[365847702,1749955840723,-230.46776317,0.00022191,4]
[365847703,1749955840733,-50.96498381,0.00022191,4]
[365847726,1749956129430,-150.0,0.00020091,2]
[365847727,1749956129451,-201.0836941,0.00020726,2]
[365847728,1749956129471,-183.6200999,0.00021043,2]
[365847729,1749956129493,-500.0,0.00021154,2]
[365847730,1749956129514,-2341.6592994,0.00021367,2]
[365847731,1749956129535,-2101.27,0.00021897,2]
[365847732,1749956129557,-300.0,0.00021916,2]
[365847733,1749956129579,-300.0,0.00021916,2]
[365847734,1749956129600,-500.0,0.00021917,4]
[365847735,1749956129622,-460.0,0.00021917,4]
[365847736,1749956129645,-423.48202224,0.00021917,4]
[365847737,1749956129668,-460.0,0.00021917,4]
[365847738,1749956129690,-4410.47,0.00021917,4]
[365847739,1749956129717,-3339.23,0.00021917,4]
[365847740,1749956129738,-405.48460467,0.00021917,4]
[365847741,1749956129760,-460.0,0.00021917,4]
[365847742,1749956129784,-2293.0,0.00021917,4]
[365847743,1749956129805,-443.41709701,0.00021917,4]
[365847744,1749956129828,-404.43787324,0.00021917,4]
[365847745,1749956129850,-460.0,0.00021917,4]
[365847746,1749956129874,-1350.26,0.00021917,4]
[365847747,1749956129896,-460.0,0.00021917,4]
[365847748,1749956129919,-1234.27,0.00021917,4]
[365847749,1749956129942,-460.0,0.00021917,4]
[365847750,1749956129966,-460.0,0.00021917,4]
[365847751,1749956129989,-460.0,0.00021917,4]
[365847752,1749956130014,-385.58526049,0.00021917,4]
[365847753,1749956130037,-683.3,0.00021917,4]
[365847754,1749956130060,-460.0,0.00021917,4]
[365847755,1749956130083,-460.0,0.00021917,4]
[365847756,1749956130105,-460.0,0.00021917,4]
[365847757,1749956130129,-1436.34,0.00021917,4]
[365847758,1749956130151,-460.0,0.00021917,4]
[365847759,1749956130172,-345.07155169,0.00021917,4]
[365847760,1749956130194,-460.0,0.00021917,4]
[365847761,1749956130222,-288.01849726,0.00021917,4]
[365847784,1749956606450,187.120709,0.00013699,2]
[365847793,1749956828140,-150.0,0.00020073,2]
[365847794,1749956828163,-187.120709,0.00020187,2]
[365847795,1749956828185,-195.2096,0.00020605,2]
[365847796,1749956828206,-257.314672,0.00020636,2]
[365847797,1749956828229,-169.785493,0.00020897,2]
[365847798,1749956828417,-169.785493,0.00021001,2]
[365847799,1749956828440,-168.0,0.00021039,2]
[365847800,1749956828461,-500.0,0.00021154,2]
[365847801,1749956828481,-666.0,0.00021188,2]
[365847802,1749956828504,-373.99794586,0.00021881,2]
[365847803,1749956828531,-843.6709077,0.000219,6]
[365847804,1749956828552,-391.0,0.00021915,2]
[365847805,1749956828573,-300.0,0.00021915,2]
[365847806,1749956828594,-300.0,0.00021915,2]